[Event "*** Titled Tuesday Blitz"]
[Site "Chess.com"]
[Date "2021.02.16"]
[Round "3"]
[White "anskam"]
[Black "digilik"]
[Result "0-1"]
[WhiteElo "1720"]
[BlackElo "2249"]
[TimeControl "180+1"]
[EndTime "10:31:16 PST"]
[Termination "digilik won on time"]

1. e4 {[%clk 0:03:00]} 1... c5 {[%clk 0:03:00.2]} 2. Nf3 {[%clk 0:02:59]} 2...
e6 {[%clk 0:03:00.6]} 3. d4 {[%clk 0:02:58.6]} 3... cxd4 {[%clk 0:03:01.5]} 4.
Nxd4 {[%clk 0:02:58.6]} 4... a6 {[%clk 0:03:02]} 5. Nc3 {[%clk 0:02:58.4]} 5...
b5 {[%clk 0:03:02]} 6. Be3 {[%clk 0:02:57.8]} 6... Bb7 {[%clk 0:03:01.3]} 7. f3
{[%clk 0:02:57.4]} 7... Nf6 {[%clk 0:03:00]} 8. Qd2 {[%clk 0:02:56.7]} 8... d5
{[%clk 0:02:55.2]} 9. exd5 {[%clk 0:02:54.1]} 9... Nxd5 {[%clk 0:02:56.1]} 10.
Nxd5 {[%clk 0:02:53.6]} 10... Qxd5 {[%clk 0:02:56.9]} 11. a3 {[%clk 0:02:38.6]}
11... Be7 {[%clk 0:02:54.8]} 12. Nb3 {[%clk 0:02:34.2]} 12... O-O {[%clk
0:02:52.7]} 13. Qxd5 {[%clk 0:02:31.4]} 13... Bxd5 {[%clk 0:02:53.6]} 14. O-O-O
{[%clk 0:02:27.6]} 14... Nd7 {[%clk 0:02:48.4]} 15. Kb1 {[%clk 0:02:23.6]} 15...
Rac8 {[%clk 0:02:43.7]} 16. Bd3 {[%clk 0:02:20]} 16... Ne5 {[%clk 0:02:35.7]}
17. Be2 {[%clk 0:02:15]} 17... Nc4 {[%clk 0:02:07.4]} 18. Bf2 {[%clk 0:02:07.9]}
18... Rc7 {[%clk 0:01:25]} 19. Bd3 {[%clk 0:02:06.5]} 19... Rfc8 {[%clk
0:01:15.7]} 20. Rhe1 {[%clk 0:02:03.2]} 20... Bd6 {[%clk 0:01:05.1]} 21. h3
{[%clk 0:01:57.2]} 21... Ne5 {[%clk 0:01:00.4]} 22. Nd4 {[%clk 0:01:35.9]} 22...
Nc4 {[%clk 0:00:43.5]} 23. Bxc4 {[%clk 0:01:26.7]} 23... Rxc4 {[%clk 0:00:44.4]}
24. c3 {[%clk 0:01:25.7]} 24... Rb8 {[%clk 0:00:34.9]} 25. Nxe6 {[%clk
0:01:20.6]} 25... fxe6 {[%clk 0:00:33.2]} 26. Kc2 {[%clk 0:01:02.5]} 26... a5
{[%clk 0:00:31.9]} 27. b3 {[%clk 0:01:01.1]} 27... Rc6 {[%clk 0:00:28.5]} 28.
Kb2 {[%clk 0:00:53.3]} 28... Rbc8 {[%clk 0:00:26]} 29. Rc1 {[%clk 0:00:51.4]}
29... a4 {[%clk 0:00:20.2]} 30. b4 {[%clk 0:00:48.1]} 30... Be7 {[%clk
0:00:20.6]} 31. Bd4 {[%clk 0:00:38.3]} 31... Bf6 {[%clk 0:00:20.9]} 32. Bxf6
{[%clk 0:00:33.5]} 32... gxf6 {[%clk 0:00:21.8]} 33. Re3 {[%clk 0:00:31.2]}
33... Kf7 {[%clk 0:00:22.1]} 34. g4 {[%clk 0:00:27.9]} 34... Rc4 {[%clk
0:00:22.3]} 35. Rf1 {[%clk 0:00:22.1]} 35... e5 {[%clk 0:00:22.5]} 36. Rd1
{[%clk 0:00:18.9]} 36... Ke6 {[%clk 0:00:22.6]} 37. Red3 {[%clk 0:00:13.8]}
37... Bc6 {[%clk 0:00:22.2]} 38. Rd6+ {[%clk 0:00:12.8]} 38... Ke7 {[%clk
0:00:22.7]} 39. R6d3 {[%clk 0:00:10.8]} 39... Be8 {[%clk 0:00:23.1]} 40. R1d2
{[%clk 0:00:07.6]} 40... R8c7 {[%clk 0:00:23.4]} 41. h4 {[%clk 0:00:06.6]} 41...
Bg6 {[%clk 0:00:23.3]} 42. Re3 {[%clk 0:00:03.5]} 42... h5 {[%clk 0:00:23.3]}
0-1

[Event "*** Titled Tuesday Blitz"]
[Site "Chess.com"]
[Date "2021.02.16"]
[Round "3"]
[White "norwaytoadog"]
[Black "elindisguise"]
[Result "0-1"]
[WhiteElo "2265"]
[BlackElo "2458"]
[TimeControl "180+1"]
[EndTime "10:31:16 PST"]
[Termination "elindisguise won on time"]

1. e4 {[%clk 0:03:00]} 1... c6 {[%clk 0:02:55]} 2. d4 {[%clk 0:02:59.7]} 2... d5
{[%clk 0:02:52.5]} 3. e5 {[%clk 0:03:00.1]} 3... Bf5 {[%clk 0:02:48.6]} 4. Nf3
{[%clk 0:03:00]} 4... e6 {[%clk 0:02:42.8]} 5. Be2 {[%clk 0:03:00.3]} 5... c5
{[%clk 0:02:39.5]} 6. Be3 {[%clk 0:02:58.7]} 6... Nc6 {[%clk 0:02:32.3]} 7. O-O
{[%clk 0:02:48.7]} 7... Qb6 {[%clk 0:02:28.5]} 8. Nc3 {[%clk 0:02:45.7]} 8...
Qxb2 {[%clk 0:02:27]} 9. Qe1 {[%clk 0:02:37.7]} 9... cxd4 {[%clk 0:02:24.6]} 10.
Bxd4 {[%clk 0:02:35.6]} 10... Bb4 {[%clk 0:02:05.7]} 11. Rb1 {[%clk 0:02:05.9]}
11... Qxc2 {[%clk 0:01:29.3]} 12. Rxb4 {[%clk 0:01:46.3]} 12... Nxb4 {[%clk
0:01:11.5]} 13. Nb5 {[%clk 0:01:20.9]} 13... Na6 {[%clk 0:00:57.5]} 14. Nd6+
{[%clk 0:01:17.4]} 14... Kf8 {[%clk 0:00:57.5]} 15. Bxa6 {[%clk 0:01:11]} 15...
bxa6 {[%clk 0:00:54.3]} 16. Nxf5 {[%clk 0:01:01.2]} 16... Qxf5 {[%clk
0:00:49.5]} 17. Bc5+ {[%clk 0:00:58.3]} 17... Ne7 {[%clk 0:00:48.2]} 18. Nd4
{[%clk 0:00:57.2]} 18... Qg5 {[%clk 0:00:45.4]} 19. Qb4 {[%clk 0:00:54.1]} 19...
a5 {[%clk 0:00:36.3]} 20. Qb7 {[%clk 0:00:47.4]} 20... Re8 {[%clk 0:00:31.4]}
21. f4 {[%clk 0:00:47]} 21... Qh4 {[%clk 0:00:20.7]} 22. Nc6 {[%clk 0:00:44.2]}
22... g6 {[%clk 0:00:09.9]} 23. g3 {[%clk 0:00:34.5]} 23... Qh3 {[%clk
0:00:09.6]} 24. Nxe7 {[%clk 0:00:32.6]} 24... Kg7 {[%clk 0:00:09]} 25. f5 {[%clk
0:00:23.5]} 25... gxf5 {[%clk 0:00:06.6]} 26. Bd4 {[%clk 0:00:21]} 26... Rb8
{[%clk 0:00:05.9]} 27. Qc7 {[%clk 0:00:10.4]} 27... Rb4 {[%clk 0:00:02.9]} 28.
Nxf5+ {[%clk 0:00:09.2]} 28... Qxf5 {[%clk 0:00:03.3]} 29. Rxf5 {[%clk
0:00:08.3]} 29... exf5 {[%clk 0:00:04.2]} 30. Qc5 {[%clk 0:00:06.9]} 30... Rc4
{[%clk 0:00:02.6]} 31. Qxd5 {[%clk 0:00:06.4]} 31... Rhc8 {[%clk 0:00:03]} 32.
e6+ {[%clk 0:00:06.1]} 32... f6 {[%clk 0:00:03.6]} 33. Qd7+ {[%clk 0:00:05.4]}
33... Kg6 {[%clk 0:00:03.8]} 34. Qf7+ {[%clk 0:00:05.1]} 34... Kg5 {[%clk
0:00:03.8]} 35. Be3+ {[%clk 0:00:05.2]} 35... Kg4 {[%clk 0:00:04.7]} 36. Qg7+
{[%clk 0:00:03.1]} 36... Kf3 {[%clk 0:00:04.2]} 0-1

[Event "*** Titled Tuesday Blitz"]
[Site "Chess.com"]
[Date "2021.02.16"]
[Round "3"]
[White "kekic76"]
[Black "Fighter008"]
[Result "0-1"]
[WhiteElo "2383"]
[BlackElo "2590"]
[TimeControl "180+1"]
[EndTime "10:31:18 PST"]
[Termination "Fighter008 won by resignation"]

1. e4 {[%clk 0:03:00.9]} 1... c5 {[%clk 0:03:00]} 2. Nf3 {[%clk 0:02:59.8]} 2...
d6 {[%clk 0:02:59.6]} 3. Bb5+ {[%clk 0:02:59.7]} 3... Nd7 {[%clk 0:02:59.1]} 4.
O-O {[%clk 0:02:59]} 4... a6 {[%clk 0:02:58.5]} 5. Bxd7+ {[%clk 0:02:58.9]} 5...
Bxd7 {[%clk 0:02:58.2]} 6. c4 {[%clk 0:02:59.1]} 6... Nf6 {[%clk 0:02:58]} 7.
Nc3 {[%clk 0:02:59.1]} 7... g6 {[%clk 0:02:51.6]} 8. e5 {[%clk 0:02:58.8]} 8...
dxe5 {[%clk 0:02:50.2]} 9. Nxe5 {[%clk 0:02:58.8]} 9... Be6 {[%clk 0:02:48.8]}
10. d3 {[%clk 0:02:53.8]} 10... Bg7 {[%clk 0:02:48.8]} 11. Be3 {[%clk
0:02:53.7]} 11... Rc8 {[%clk 0:02:47.7]} 12. Qb3 {[%clk 0:02:48.2]} 12... Qc7
{[%clk 0:02:29.9]} 13. f4 {[%clk 0:02:26.2]} 13... O-O {[%clk 0:02:28.1]} 14.
Rae1 {[%clk 0:02:25]} 14... Bf5 {[%clk 0:02:27.9]} 15. Na4 {[%clk 0:02:07.1]}
15... Rfd8 {[%clk 0:01:57.2]} 16. Nxc5 {[%clk 0:01:51.6]} 16... Rb8 {[%clk
0:01:57.1]} 17. Rd1 {[%clk 0:01:46.1]} 17... Ng4 {[%clk 0:01:50]} 18. Nxg4
{[%clk 0:01:43.2]} 18... Bxg4 {[%clk 0:01:50.9]} 19. Rd2 {[%clk 0:01:40.3]}
19... Qc6 {[%clk 0:01:47.8]} 20. Ne4 {[%clk 0:01:30.4]} 20... Bf5 {[%clk
0:01:42.5]} 21. Nf2 {[%clk 0:01:29.4]} 21... b5 {[%clk 0:01:42.2]} 22. c5 {[%clk
0:01:27.3]} 22... Be6 {[%clk 0:01:41.1]} 23. Qc2 {[%clk 0:01:21.4]} 23... Bd5
{[%clk 0:01:42]} 24. Nd1 {[%clk 0:01:12.1]} 24... b4 {[%clk 0:01:40.6]} 25. b3
{[%clk 0:01:08.6]} 25... a5 {[%clk 0:01:40]} 26. Nb2 {[%clk 0:01:01.7]} 26...
Ra8 {[%clk 0:01:35.8]} 27. Na4 {[%clk 0:00:59.6]} 27... Rab8 {[%clk 0:01:24.8]}
28. h3 {[%clk 0:00:55.7]} 28... Be6 {[%clk 0:01:20.9]} 29. Kh2 {[%clk
0:00:52.2]} 29... Bf5 {[%clk 0:01:21]} 30. Qc4 {[%clk 0:00:44.8]} 30... e5
{[%clk 0:01:12.2]} 31. fxe5 {[%clk 0:00:41.3]} 31... Bxe5+ {[%clk 0:01:13.1]}
32. Bf4 {[%clk 0:00:41.2]} 32... Rd4 {[%clk 0:00:59.8]} 33. Qxd4 {[%clk
0:00:37]} 33... Bxd4 {[%clk 0:00:59.5]} 34. Bxb8 {[%clk 0:00:36.7]} 34... h5
{[%clk 0:00:56.6]} 35. Bd6 {[%clk 0:00:32.5]} 35... Qd5 {[%clk 0:00:53.6]} 36.
Nb6 {[%clk 0:00:29.9]} 36... Qe6 {[%clk 0:00:53.3]} 37. Nc4 {[%clk 0:00:28.1]}
37... Bc3 {[%clk 0:00:50.6]} 38. Rdf2 {[%clk 0:00:26.4]} 38... Bxd3 {[%clk
0:00:48.3]} 39. Rxf7 {[%clk 0:00:26.1]} 39... Bxf1 {[%clk 0:00:45.8]} 40. Rxf1
{[%clk 0:00:25.8]} 40... Bg7 {[%clk 0:00:41]} 41. Nxa5 {[%clk 0:00:24.5]} 41...
Qe2 {[%clk 0:00:40.9]} 42. Rf3 {[%clk 0:00:19.7]} 42... Qxa2 {[%clk 0:00:40.4]}
43. c6 {[%clk 0:00:19.7]} 43... Qxa5 {[%clk 0:00:34]} 44. c7 {[%clk 0:00:20]}
44... Be5+ {[%clk 0:00:34.5]} 45. g3 {[%clk 0:00:12.1]} 45... Qa2+ {[%clk
0:00:31.9]} 46. Kh1 {[%clk 0:00:12.4]} 46... Qb1+ {[%clk 0:00:24.6]} 47. Kg2
{[%clk 0:00:12.4]} 47... Qc2+ {[%clk 0:00:23.6]} 48. Rf2 {[%clk 0:00:12.7]}
48... Qc6+ {[%clk 0:00:23.5]} 49. Kh2 {[%clk 0:00:09.2]} 49... Bxd6 {[%clk
0:00:23.2]} 0-1

[Event "*** Titled Tuesday Blitz"]
[Site "Chess.com"]
[Date "2021.02.16"]
[Round "3"]
[White "Balla_Tamas"]
[Black "HanSchut"]
[Result "1-0"]
[WhiteElo "2445"]
[BlackElo "2253"]
[TimeControl "180+1"]
[EndTime "10:31:18 PST"]
[Termination "Balla_Tamas won by resignation"]

1. b3 {[%clk 0:03:00.9]} 1... e5 {[%clk 0:02:59]} 2. Bb2 {[%clk 0:03:01.4]} 2...
Nc6 {[%clk 0:02:59.5]} 3. e3 {[%clk 0:03:01.7]} 3... Bd6 {[%clk 0:02:59.6]} 4.
Na3 {[%clk 0:03:00.2]} 4... Qe7 {[%clk 0:02:55.2]} 5. Nb5 {[%clk 0:02:57.4]}
5... f5 {[%clk 0:02:47.2]} 6. Nxd6+ {[%clk 0:02:56.3]} 6... cxd6 {[%clk
0:02:45.1]} 7. d4 {[%clk 0:02:53.9]} 7... exd4 {[%clk 0:02:30.1]} 8. Bxd4 {[%clk
0:02:52.7]} 8... Nxd4 {[%clk 0:02:26.4]} 9. Qxd4 {[%clk 0:02:52]} 9... Nf6
{[%clk 0:02:27]} 10. Bc4 {[%clk 0:02:44.6]} 10... Qe4 {[%clk 0:02:18.2]} 11. Nf3
{[%clk 0:02:27]} 11... d5 {[%clk 0:02:12.6]} 12. Bd3 {[%clk 0:02:26]} 12... Qxd4
{[%clk 0:02:06.3]} 13. Nxd4 {[%clk 0:02:25.9]} 13... d6 {[%clk 0:02:06.6]} 14.
Bxf5 {[%clk 0:02:23.9]} 14... O-O {[%clk 0:02:00.9]} 15. Bd3 {[%clk 0:02:16.6]}
15... Ne4 {[%clk 0:01:56.8]} 16. Bxe4 {[%clk 0:02:12.6]} 16... dxe4 {[%clk
0:01:57.7]} 17. c4 {[%clk 0:02:11.7]} 17... Bd7 {[%clk 0:01:44.3]} 18. Rd1
{[%clk 0:02:09]} 18... Rf6 {[%clk 0:01:41.6]} 19. O-O {[%clk 0:02:03.9]} 19...
a6 {[%clk 0:01:41.9]} 20. Rd2 {[%clk 0:02:03.3]} 20... b5 {[%clk 0:01:42.1]} 21.
Rc1 {[%clk 0:01:59.9]} 21... bxc4 {[%clk 0:01:30.1]} 22. Rxc4 {[%clk 0:01:59.1]}
22... a5 {[%clk 0:01:17.8]} 23. Rc7 {[%clk 0:01:57.2]} 23... Be8 {[%clk
0:01:15.4]} 24. h3 {[%clk 0:01:49.2]} 24... a4 {[%clk 0:01:08.6]} 25. b4 {[%clk
0:01:48.9]} 25... a3 {[%clk 0:01:06.4]} 26. Rdc2 {[%clk 0:01:28]} 26... h6
{[%clk 0:00:48.9]} 27. Rc8 {[%clk 0:01:26.9]} 27... Rxc8 {[%clk 0:00:48.5]} 28.
Rxc8 {[%clk 0:01:27.8]} 28... Kf7 {[%clk 0:00:49.1]} 29. Ra8 {[%clk 0:01:25.2]}
29... d5 {[%clk 0:00:32.9]} 30. Ra7+ {[%clk 0:01:25.1]} 30... Kg6 {[%clk
0:00:31.2]} 31. Rxa3 {[%clk 0:01:26]} 31... Rb6 {[%clk 0:00:31.2]} 32. Rb3
{[%clk 0:01:24.8]} 32... Kf6 {[%clk 0:00:25.7]} 33. b5 {[%clk 0:01:22.5]} 33...
Ke5 {[%clk 0:00:26.2]} 34. a4 {[%clk 0:01:21.9]} 34... Kd6 {[%clk 0:00:23]} 35.
a5 {[%clk 0:01:20.9]} 35... Rb8 {[%clk 0:00:23.5]} 36. b6 {[%clk 0:01:20.2]}
36... Kc5 {[%clk 0:00:23.7]} 37. Kh2 {[%clk 0:01:17.8]} 37... Ba4 {[%clk
0:00:23.1]} 38. Rb2 {[%clk 0:01:14.6]} 38... Kc4 {[%clk 0:00:22.9]} 39. Kg3
{[%clk 0:01:12.7]} 39... Kc3 {[%clk 0:00:22.7]} 40. Ra2 {[%clk 0:01:10.6]} 40...
Kb4 {[%clk 0:00:22.7]} 41. Kf4 {[%clk 0:00:54.1]} 41... Rb7 {[%clk 0:00:19.3]}
42. Ke5 {[%clk 0:00:31]} 42... Kxa5 {[%clk 0:00:15.6]} 43. Kxd5 {[%clk
0:00:30.5]} 43... Kb4 {[%clk 0:00:15.3]} 44. Kxe4 {[%clk 0:00:29.6]} 44... Rxb6
{[%clk 0:00:13.1]} 45. Rb2+ {[%clk 0:00:29.2]} 45... Kc5 {[%clk 0:00:10.3]} 46.
Rxb6 {[%clk 0:00:30.1]} 46... Kxb6 {[%clk 0:00:11.2]} 47. Ke5 {[%clk 0:00:30.2]}
47... Be8 {[%clk 0:00:09.4]} 48. Ne6 {[%clk 0:00:29.9]} 48... g6 {[%clk
0:00:07.3]} 49. f4 {[%clk 0:00:28.5]} 49... Kc6 {[%clk 0:00:07.6]} 50. e4 {[%clk
0:00:28.2]} 50... Kd7 {[%clk 0:00:07.8]} 51. Kf6 {[%clk 0:00:28.2]} 51... h5
{[%clk 0:00:06.1]} 52. Nf8+ {[%clk 0:00:27.7]} 52... Kd6 {[%clk 0:00:06.2]} 53.
Nxg6 {[%clk 0:00:28.6]} 1-0

[Event "*** Titled Tuesday Blitz"]
[Site "Chess.com"]
[Date "2021.02.16"]
[Round "3"]
[White "MrTattaglia"]
[Black "PaulfromSPb"]
[Result "0-1"]
[WhiteElo "2760"]
[BlackElo "2607"]
[TimeControl "180+1"]
[EndTime "10:31:19 PST"]
[Termination "PaulfromSPb won on time"]

1. Nf3 {[%clk 0:02:56]} 1... Nf6 {[%clk 0:02:19.6]} 2. d4 {[%clk 0:02:54.7]}
2... e6 {[%clk 0:02:19.4]} 3. c4 {[%clk 0:02:54.6]} 3... b6 {[%clk 0:02:18.6]}
4. g3 {[%clk 0:02:54.9]} 4... Ba6 {[%clk 0:02:15.8]} 5. Nbd2 {[%clk 0:02:54.1]}
5... c5 {[%clk 0:02:15.2]} 6. dxc5 {[%clk 0:02:48.8]} 6... bxc5 {[%clk
0:02:12.8]} 7. Bg2 {[%clk 0:02:49.3]} 7... Bb7 {[%clk 0:02:13]} 8. O-O {[%clk
0:02:49.8]} 8... Be7 {[%clk 0:02:13.4]} 9. b3 {[%clk 0:02:50.1]} 9... O-O {[%clk
0:02:13.2]} 10. Bb2 {[%clk 0:02:50.5]} 10... Nc6 {[%clk 0:02:13.6]} 11. Ne5
{[%clk 0:02:48.8]} 11... Qc7 {[%clk 0:02:13.5]} 12. Nd3 {[%clk 0:02:48.5]} 12...
Rfd8 {[%clk 0:02:10.2]} 13. Rc1 {[%clk 0:02:46.2]} 13... a5 {[%clk 0:02:08.8]}
14. a4 {[%clk 0:02:41.2]} 14... Nb4 {[%clk 0:02:06.7]} 15. Nxb4 {[%clk
0:02:37.7]} 15... Bxg2 {[%clk 0:01:08.4]} 16. Kxg2 {[%clk 0:02:37.7]} 16... Qb7+
{[%clk 0:01:08.5]} 17. e4 {[%clk 0:02:27.7]} 17... Qxb4 {[%clk 0:01:06.4]} 18.
Bc3 {[%clk 0:01:23.2]} 18... Qb7 {[%clk 0:01:05.8]} 19. Qf3 {[%clk 0:01:23.6]}
19... d6 {[%clk 0:01:02.3]} 20. Rfd1 {[%clk 0:01:19.6]} 20... Nd7 {[%clk
0:01:00.1]} 21. h4 {[%clk 0:01:11]} 21... Bf6 {[%clk 0:00:54.3]} 22. Re1 {[%clk
0:01:06.2]} 22... Bxc3 {[%clk 0:00:53.6]} 23. Rxc3 {[%clk 0:01:07.1]} 23... Ne5
{[%clk 0:00:53.5]} 24. Qe3 {[%clk 0:00:59.5]} 24... Nc6 {[%clk 0:00:53.3]} 25.
Nf3 {[%clk 0:00:58.1]} 25... e5 {[%clk 0:00:53.6]} 26. Rb1 {[%clk 0:00:49.3]}
26... Nd4 {[%clk 0:00:53.5]} 27. Kg1 {[%clk 0:00:33.2]} 27... Re8 {[%clk
0:00:53]} 28. Rd3 {[%clk 0:00:27]} 28... Rab8 {[%clk 0:00:52.9]} 29. Qe1 {[%clk
0:00:19.2]} 29... Qb6 {[%clk 0:00:49]} 30. Nxd4 {[%clk 0:00:18.5]} 30... exd4
{[%clk 0:00:49.3]} 31. g4 {[%clk 0:00:12.7]} 31... Qc6 {[%clk 0:00:43.2]} 32. f3
{[%clk 0:00:12.5]} 32... Rb4 {[%clk 0:00:40.6]} 33. Qg3 {[%clk 0:00:08.7]} 33...
Qb6 {[%clk 0:00:40.3]} 34. Qe1 {[%clk 0:00:03.7]} 34... d5 {[%clk 0:00:35.9]}
35. cxd5 {[%clk 0:00:03.3]} 35... c4 {[%clk 0:00:36.3]} 36. Rdd1 {[%clk
0:00:03.6]} 36... c3 {[%clk 0:00:27.8]} 37. Qf2 {[%clk 0:00:02.1]} 37... Rc8
{[%clk 0:00:24.4]} 38. Rbc1 {[%clk 0:00:02.5]} 38... Qc5 {[%clk 0:00:20.9]} 39.
Rd3 {[%clk 0:00:02.3]} 39... Rxb3 {[%clk 0:00:18.3]} 40. Qxd4 {[%clk 0:00:02.2]}
40... Qa3 {[%clk 0:00:18.3]} 41. Rdd1 {[%clk 0:00:01.5]} 41... c2 {[%clk
0:00:18.7]} 42. Rf1 {[%clk 0:00:02]} 42... Rxf3 {[%clk 0:00:18.7]} 43. Rxf3
{[%clk 0:00:01.7]} 43... Qxf3 {[%clk 0:00:19.6]} 44. Qd2 {[%clk 0:00:01.1]}
44... Qxg4+ {[%clk 0:00:18.8]} 45. Qg2 {[%clk 0:00:01.4]} 45... Qd1+ {[%clk
0:00:15.6]} 0-1

[Event "*** Titled Tuesday Blitz"]
[Site "Chess.com"]
[Date "2021.02.16"]
[Round "3"]
[White "Titus369"]
[Black "TeukkaSalama"]
[Result "1-0"]
[WhiteElo "2569"]
[BlackElo "2377"]
[TimeControl "180+1"]
[EndTime "10:31:21 PST"]
[Termination "Titus369 won by checkmate"]

1. e4 {[%clk 0:02:53.8]} 1... d6 {[%clk 0:03:00.3]} 2. d4 {[%clk 0:02:53.7]}
2... Nf6 {[%clk 0:03:01]} 3. Nc3 {[%clk 0:02:52.6]} 3... e5 {[%clk 0:03:01.6]}
4. Nf3 {[%clk 0:02:51.3]} 4... exd4 {[%clk 0:03:01.5]} 5. Nxd4 {[%clk 0:02:51]}
5... Be7 {[%clk 0:03:02]} 6. Bc4 {[%clk 0:02:48.7]} 6... O-O {[%clk 0:03:02.3]}
7. O-O {[%clk 0:02:47.5]} 7... Nbd7 {[%clk 0:03:02.4]} 8. a4 {[%clk 0:02:41.8]}
8... Re8 {[%clk 0:03:01.8]} 9. f4 {[%clk 0:02:16.4]} 9... Bf8 {[%clk 0:02:59.1]}
10. Qf3 {[%clk 0:02:09.3]} 10... Nc5 {[%clk 0:02:58.2]} 11. Re1 {[%clk 0:01:55]}
11... a5 {[%clk 0:02:51.8]} 12. b3 {[%clk 0:01:46.4]} 12... c6 {[%clk
0:02:48.3]} 13. Bb2 {[%clk 0:01:42.8]} 13... Qb6 {[%clk 0:02:43.9]} 14. Kh1
{[%clk 0:01:39.6]} 14... Nxb3 {[%clk 0:02:01]} 15. Nxb3 {[%clk 0:01:26.3]} 15...
Qb4 {[%clk 0:01:54.7]} 16. Bd3 {[%clk 0:01:17.9]} 16... Bg4 {[%clk 0:01:53.9]}
17. Qg3 {[%clk 0:01:14.8]} 17... Be6 {[%clk 0:01:36.5]} 18. Na2 {[%clk
0:01:13.6]} 18... Nh5 {[%clk 0:01:29.1]} 19. Qf3 {[%clk 0:01:08.3]} 19... Qb6
{[%clk 0:01:15.7]} 20. Qxh5 {[%clk 0:01:07.7]} 20... Bxb3 {[%clk 0:01:16.3]} 21.
cxb3 {[%clk 0:01:07.2]} 21... Qxb3 {[%clk 0:01:17]} 22. Qe2 {[%clk 0:01:07.7]}
22... d5 {[%clk 0:01:07.9]} 23. e5 {[%clk 0:01:01.7]} 23... Re6 {[%clk
0:01:07.3]} 24. Nc1 {[%clk 0:00:56.7]} 24... Qb4 {[%clk 0:01:03.9]} 25. Ba3
{[%clk 0:00:54.5]} 25... Qxf4 {[%clk 0:01:00.2]} 26. Bxf8 {[%clk 0:00:53.7]}
26... Rxf8 {[%clk 0:01:01.1]} 27. Nb3 {[%clk 0:00:48.7]} 27... Rfe8 {[%clk
0:00:58.3]} 28. Qf3 {[%clk 0:00:41.4]} 28... Qb4 {[%clk 0:00:47.4]} 29. Qg3
{[%clk 0:00:35.5]} 29... c5 {[%clk 0:00:37.1]} 30. Bb5 {[%clk 0:00:31.6]} 30...
R8e7 {[%clk 0:00:35.9]} 31. Rad1 {[%clk 0:00:28.1]} 31... d4 {[%clk 0:00:34]}
32. Nd2 {[%clk 0:00:13.4]} 32... Rg6 {[%clk 0:00:25.8]} 33. Qf3 {[%clk
0:00:11.9]} 33... Qb2 {[%clk 0:00:17.5]} 34. Nc4 {[%clk 0:00:10.6]} 34... Qc2
{[%clk 0:00:13.2]} 35. Nd6 {[%clk 0:00:08.9]} 35... Qb2 {[%clk 0:00:08.8]} 36.
Bc4 {[%clk 0:00:08.3]} 36... Kh8 {[%clk 0:00:08.2]} 37. Nxf7+ {[%clk 0:00:08.1]}
37... Rxf7 {[%clk 0:00:08.5]} 38. Bxf7 {[%clk 0:00:08.6]} 38... Rg5 {[%clk
0:00:08]} 39. e6 {[%clk 0:00:08.9]} 39... Rxg2 {[%clk 0:00:01.9]} 40. e7 {[%clk
0:00:06.7]} 40... Rxh2+ {[%clk 0:00:01.8]} 41. Kg1 {[%clk 0:00:07.2]} 41... Rh1+
{[%clk 0:00:01.9]} 42. Kxh1 {[%clk 0:00:05.9]} 42... h6 {[%clk 0:00:01.9]} 43.
e8=Q+ {[%clk 0:00:06.2]} 43... Kh7 {[%clk 0:00:02.3]} 44. Bg8+ {[%clk
0:00:06.9]} 44... Kh8 {[%clk 0:00:02.1]} 45. Bc4+ {[%clk 0:00:07.8]} 45... Kh7
{[%clk 0:00:03]} 46. Bd3+ {[%clk 0:00:08.3]} 46... g6 {[%clk 0:00:02]} 47. Re7#
{[%clk 0:00:09.2]} 1-0

[Event "*** Titled Tuesday Blitz"]
[Site "Chess.com"]
[Date "2021.02.16"]
[Round "3"]
[White "CSB7"]
[Black "Cecile-Haussernot"]
[Result "1-0"]
[WhiteElo "2536"]
[BlackElo "2328"]
[TimeControl "180+1"]
[EndTime "10:31:23 PST"]
[Termination "CSB7 won by resignation"]

1. d4 {[%clk 0:03:00.9]} 1... Nf6 {[%clk 0:02:59.3]} 2. Nf3 {[%clk 0:03:00.8]}
2... e6 {[%clk 0:02:58.3]} 3. Bf4 {[%clk 0:02:59.3]} 3... c5 {[%clk 0:02:58.1]}
4. e3 {[%clk 0:02:59.3]} 4... Nc6 {[%clk 0:02:56.8]} 5. Nbd2 {[%clk 0:02:58.2]}
5... d5 {[%clk 0:02:50.5]} 6. c3 {[%clk 0:02:57.9]} 6... Be7 {[%clk 0:02:47.5]}
7. Ne5 {[%clk 0:02:55.4]} 7... O-O {[%clk 0:02:45.6]} 8. Bd3 {[%clk 0:02:54]}
8... Qb6 {[%clk 0:02:38.5]} 9. Rb1 {[%clk 0:02:52.1]} 9... cxd4 {[%clk
0:02:24.1]} 10. exd4 {[%clk 0:02:50.1]} 10... Nxe5 {[%clk 0:02:23.2]} 11. Bxe5
{[%clk 0:02:49.5]} 11... Nd7 {[%clk 0:02:22.3]} 12. Bg3 {[%clk 0:02:45.8]} 12...
Bd6 {[%clk 0:02:19.9]} 13. Nf3 {[%clk 0:02:43.4]} 13... e5 {[%clk 0:02:11.8]}
14. dxe5 {[%clk 0:02:36.2]} 14... Re8 {[%clk 0:01:51.7]} 15. O-O {[%clk
0:02:34.8]} 15... Bxe5 {[%clk 0:01:40.5]} 16. Nxe5 {[%clk 0:02:30.1]} 16... Nxe5
{[%clk 0:01:41.4]} 17. Re1 {[%clk 0:02:30.3]} 17... f6 {[%clk 0:01:39]} 18.
Bxh7+ {[%clk 0:01:47.4]} 18... Kh8 {[%clk 0:01:26.5]} 19. Bc2 {[%clk 0:00:58.3]}
19... Bg4 {[%clk 0:01:21.7]} 20. Qd2 {[%clk 0:00:54.4]} 20... Nc4 {[%clk
0:01:03.7]} 21. Qxd5 {[%clk 0:00:40.3]} 21... Qxb2 {[%clk 0:01:00.9]} 22. Qxc4
{[%clk 0:00:32.5]} 22... Qxc2 {[%clk 0:00:46]} 23. Qxg4 {[%clk 0:00:29.7]} 23...
Rxe1+ {[%clk 0:00:40.1]} 24. Rxe1 {[%clk 0:00:30.6]} 24... Qxc3 {[%clk
0:00:40.2]} 25. Qh5+ {[%clk 0:00:24.7]} 25... Kg8 {[%clk 0:00:40.4]} 26. Qd5+
{[%clk 0:00:21.1]} 26... Kh8 {[%clk 0:00:39.1]} 27. Qh5+ {[%clk 0:00:18.3]}
27... Kg8 {[%clk 0:00:39.2]} 28. Qe2 {[%clk 0:00:17.4]} 28... Rd8 {[%clk
0:00:38.5]} 29. h3 {[%clk 0:00:16.8]} 29... Qc6 {[%clk 0:00:33.8]} 30. Qe6+
{[%clk 0:00:14.5]} 30... Qxe6 {[%clk 0:00:34]} 31. Rxe6 {[%clk 0:00:15.1]} 31...
Kf7 {[%clk 0:00:34.7]} 32. Re2 {[%clk 0:00:13]} 32... Rd1+ {[%clk 0:00:34.9]}
33. Kh2 {[%clk 0:00:13.4]} 33... Rb1 {[%clk 0:00:34.6]} 34. Rc2 {[%clk 0:00:13]}
34... a5 {[%clk 0:00:33.8]} 35. f4 {[%clk 0:00:12.5]} 35... Kg6 {[%clk
0:00:33.4]} 36. Rc5 {[%clk 0:00:11.8]} 36... b5 {[%clk 0:00:33.4]} 37. f5+
{[%clk 0:00:11.1]} 37... Kg5 {[%clk 0:00:32.8]} 38. a4 {[%clk 0:00:11.6]} 38...
bxa4 {[%clk 0:00:29]} 39. Rxa5 {[%clk 0:00:12.5]} 39... Ra1 {[%clk 0:00:28.3]}
40. Bd6 {[%clk 0:00:12.4]} 40... Ra2 {[%clk 0:00:26.7]} 41. Bf8 {[%clk
0:00:12.1]} 41... g6 {[%clk 0:00:20.9]} 42. fxg6+ {[%clk 0:00:13]} 42... Kxg6
{[%clk 0:00:21.8]} 43. Ra6 {[%clk 0:00:13.3]} 43... Kf7 {[%clk 0:00:20.1]} 44.
Bb4 {[%clk 0:00:13.5]} 44... Kg6 {[%clk 0:00:18.9]} 45. Bc3 {[%clk 0:00:13.2]}
45... Kf5 {[%clk 0:00:19.2]} 46. Bxf6 {[%clk 0:00:13.2]} 46... Ke4 {[%clk
0:00:19.5]} 47. Kg3 {[%clk 0:00:12.6]} 47... Kd5 {[%clk 0:00:19.7]} 48. h4
{[%clk 0:00:12.7]} 48... Kc4 {[%clk 0:00:20.2]} 49. h5 {[%clk 0:00:12.9]} 49...
Kb3 {[%clk 0:00:20.6]} 50. h6 {[%clk 0:00:13]} 50... Rd2 {[%clk 0:00:20.3]} 51.
h7 {[%clk 0:00:12.1]} 51... Rd3+ {[%clk 0:00:18.1]} 52. Kg4 {[%clk 0:00:12.4]}
1-0